[Event "GrandPrix_30.05"]
[Site "Chess.com"]
[Date "2020.05.30"]
[Round "2"]
[White "sahidi"]
[Black "OK97"]
[Result "1-0"]
[WhiteElo "2220"]
[BlackElo "2316"]
[TimeControl "600+2"]
[EndTime "8:47:16 PDT"]
[Termination "sahidi won by checkmate"]

1. e4 {[%clk 0:09:58]} 1... c5 {[%clk 0:09:58.4]} 2. Nf3 {[%clk 0:09:56.5]} 2...
d6 {[%clk 0:09:58.7]} 3. d4 {[%clk 0:09:56.2]} 3... cxd4 {[%clk 0:09:59.5]} 4.
Nxd4 {[%clk 0:09:57.4]} 4... Nf6 {[%clk 0:10:00.7]} 5. Nc3 {[%clk 0:09:56.9]}
5... Nc6 {[%clk 0:10:01.4]} 6. Be2 {[%clk 0:09:52.4]} 6... e5 {[%clk 0:09:56.7]}
7. Nb3 {[%clk 0:09:50.9]} 7... Be7 {[%clk 0:09:46.6]} 8. Bg5 {[%clk 0:09:48.5]}
8... Be6 {[%clk 0:09:40.5]} 9. Bxf6 {[%clk 0:09:47.3]} 9... Bxf6 {[%clk
0:09:41.6]} 10. Nd5 {[%clk 0:09:46]} 10... O-O {[%clk 0:08:35.9]} 11. O-O {[%clk
0:09:42.9]} 11... Bg5 {[%clk 0:08:25.8]} 12. c3 {[%clk 0:09:39]} 12... g6 {[%clk
0:08:19.2]} 13. Qd3 {[%clk 0:09:28.6]} 13... Kh8 {[%clk 0:08:09]} 14. Rad1
{[%clk 0:09:28.2]} 14... f5 {[%clk 0:07:49.3]} 15. Ne3 {[%clk 0:08:57]} 15...
Be7 {[%clk 0:06:56]} 16. Bf3 {[%clk 0:08:49.2]} 16... a5 {[%clk 0:06:06.4]} 17.
exf5 {[%clk 0:08:42.9]} 17... gxf5 {[%clk 0:06:07.1]} 18. Bd5 {[%clk 0:08:42.5]}
18... Bd7 {[%clk 0:05:51.6]} 19. Nd2 {[%clk 0:08:36.7]} 19... e4 {[%clk
0:05:33.7]} 20. Qc2 {[%clk 0:08:25.9]} 20... Rc8 {[%clk 0:05:06.3]} 21. Qb3
{[%clk 0:08:21]} 21... b5 {[%clk 0:04:29.9]} 22. Be6 {[%clk 0:08:12.8]} 22... a4
{[%clk 0:04:03.8]} 23. Qd5 {[%clk 0:08:12.4]} 23... Ne5 {[%clk 0:04:03.5]} 24.
Bxd7 {[%clk 0:08:10.3]} 24... Qxd7 {[%clk 0:03:52.2]} 25. Nxe4 {[%clk
0:08:04.9]} 25... Qe8 {[%clk 0:02:39.1]} 26. Nxd6 {[%clk 0:07:58.2]} 26... Bxd6
{[%clk 0:02:41]} 27. Qxd6 {[%clk 0:07:58.9]} 27... f4 {[%clk 0:02:33.1]} 28. Nd5
{[%clk 0:07:56.4]} 28... Qh5 {[%clk 0:02:20.1]} 29. Rfe1 {[%clk 0:07:47.7]}
29... Nc4 {[%clk 0:01:01.3]} 30. Qd7 {[%clk 0:07:32.8]} 30... f3 {[%clk
0:00:55.7]} 31. Ne7 {[%clk 0:07:21.2]} 31... Rcd8 {[%clk 0:00:26.7]} 32. Qe6
{[%clk 0:07:11.1]} 32... Rxd1 {[%clk 0:00:17.3]} 33. Rxd1 {[%clk 0:07:09.5]}
33... fxg2 {[%clk 0:00:18.9]} 34. Rd8 {[%clk 0:06:57.9]} 34... Qf3 {[%clk
0:00:09.4]} 35. Qg8+ {[%clk 0:06:55.3]} 35... Rxg8 {[%clk 0:00:06.6]} 36. Rxg8#
{[%clk 0:06:48.2]} 1-0

[Event "GrandPrix_30.05"]
[Site "Chess.com"]
[Date "2020.05.30"]
[Round "2"]
[White "Martin_Petrov2000"]
[Black "Flawless_Fighter"]
[Result "1-0"]
[WhiteElo "2110"]
[BlackElo "2210"]
[TimeControl "600+2"]
[EndTime "8:47:33 PDT"]
[Termination "Martin_Petrov2000 won by checkmate"]

1. d4 {[%clk 0:10:00.9]} 1... Nf6 {[%clk 0:10:00.7]} 2. Nf3 {[%clk 0:10:01.6]}
2... e6 {[%clk 0:10:02]} 3. e3 {[%clk 0:10:01.6]} 3... d5 {[%clk 0:10:01.5]} 4.
Bd3 {[%clk 0:10:01.6]} 4... b6 {[%clk 0:09:53.2]} 5. O-O {[%clk 0:09:59.1]} 5...
Bb7 {[%clk 0:09:53.5]} 6. b3 {[%clk 0:10:00.4]} 6... Be7 {[%clk 0:09:44.4]} 7.
Bb2 {[%clk 0:10:00.7]} 7... O-O {[%clk 0:09:45.6]} 8. Nbd2 {[%clk 0:09:58.4]}
8... c5 {[%clk 0:09:44.4]} 9. Ne5 {[%clk 0:09:55.3]} 9... Nc6 {[%clk 0:09:43]}
10. f4 {[%clk 0:09:36.8]} 10... Rc8 {[%clk 0:09:33.9]} 11. a3 {[%clk 0:09:36.7]}
11... a6 {[%clk 0:08:40.8]} 12. g4 {[%clk 0:08:04.5]} 12... Ne4 {[%clk
0:06:46.4]} 13. Nxc6 {[%clk 0:07:40.7]} 13... Bxc6 {[%clk 0:06:30.2]} 14. Nxe4
{[%clk 0:07:37.4]} 14... dxe4 {[%clk 0:06:30]} 15. Bxa6 {[%clk 0:07:37.7]} 15...
Ra8 {[%clk 0:05:29.5]} 16. Be2 {[%clk 0:07:27.5]} 16... cxd4 {[%clk 0:05:12.7]}
17. Qxd4 {[%clk 0:07:26.9]} 17... Bf6 {[%clk 0:04:41.5]} 18. Qxd8 {[%clk
0:07:24.6]} 18... Rfxd8 {[%clk 0:04:43.4]} 19. Bxf6 {[%clk 0:07:23.3]} 19...
gxf6 {[%clk 0:04:45.3]} 20. Rfd1 {[%clk 0:07:07.8]} 20... b5 {[%clk 0:03:19]}
21. Kf2 {[%clk 0:06:59.6]} 21... Kf8 {[%clk 0:03:01.7]} 22. Rxd8+ {[%clk
0:06:42.6]} 22... Rxd8 {[%clk 0:03:03.6]} 23. Rd1 {[%clk 0:06:43.2]} 23... Ra8
{[%clk 0:02:55.4]} 24. Rd6 {[%clk 0:06:42.4]} 24... Be8 {[%clk 0:02:55.9]} 25.
Rb6 {[%clk 0:06:02.6]} 25... Rc8 {[%clk 0:02:38.4]} 26. c4 {[%clk 0:05:59.4]}
26... bxc4 {[%clk 0:02:37.5]} 27. Bxc4 {[%clk 0:06:00.9]} 27... Kg7 {[%clk
0:02:17.5]} 28. Rd6 {[%clk 0:05:42.8]} 28... h5 {[%clk 0:02:12.4]} 29. gxh5
{[%clk 0:05:24.7]} 29... Kh6 {[%clk 0:02:13.1]} 30. f5 {[%clk 0:05:24.5]} 30...
exf5 {[%clk 0:02:02.5]} 31. Kg3 {[%clk 0:05:07.7]} 31... Kxh5 {[%clk 0:01:48.3]}
32. Rxf6 {[%clk 0:04:50.8]} 32... Kg5 {[%clk 0:01:49.2]} 33. Rd6 {[%clk
0:04:51.2]} 33... Ra8 {[%clk 0:01:41.8]} 34. h4+ {[%clk 0:04:50.3]} 34... Kh5
{[%clk 0:01:40]} 35. Be2# {[%clk 0:04:50.6]} 1-0

[Event "GrandPrix_30.05"]
[Site "Chess.com"]
[Date "2020.05.30"]
[Round "2"]
[White "Spartakus1975"]
[Black "MikaelyanArman1996"]
[Result "0-1"]
[WhiteElo "2540"]
[BlackElo "2370"]
[TimeControl "600+2"]
[EndTime "8:47:36 PDT"]
[Termination "MikaelyanArman1996 won by resignation"]

1. e4 {[%clk 0:10:00.5]} 1... c5 {[%clk 0:10:00.3]} 2. c3 {[%clk 0:10:00]} 2...
Nf6 {[%clk 0:10:00.4]} 3. e5 {[%clk 0:10:00.6]} 3... Nd5 {[%clk 0:10:01.1]} 4.
Nf3 {[%clk 0:10:02.2]} 4... Nc6 {[%clk 0:10:01.6]} 5. d4 {[%clk 0:10:03.1]} 5...
cxd4 {[%clk 0:10:02.4]} 6. cxd4 {[%clk 0:10:04.7]} 6... d6 {[%clk 0:10:03.1]} 7.
Bc4 {[%clk 0:10:06.1]} 7... Nb6 {[%clk 0:09:34.9]} 8. Bb5 {[%clk 0:10:04.7]}
8... Bd7 {[%clk 0:09:10.6]} 9. Nc3 {[%clk 0:10:01.5]} 9... dxe5 {[%clk
0:09:05.4]} 10. dxe5 {[%clk 0:10:00.5]} 10... g6 {[%clk 0:08:59.7]} 11. O-O
{[%clk 0:09:56.7]} 11... Bg7 {[%clk 0:08:58.5]} 12. Qe2 {[%clk 0:09:37.7]} 12...
O-O {[%clk 0:08:52.6]} 13. Rd1 {[%clk 0:09:30.9]} 13... Qc7 {[%clk 0:08:46.7]}
14. Bf4 {[%clk 0:09:29.4]} 14... Bg4 {[%clk 0:08:19.9]} 15. Rac1 {[%clk
0:08:12.8]} 15... Bxf3 {[%clk 0:07:21.4]} 16. Qxf3 {[%clk 0:08:11.5]} 16... Bxe5
{[%clk 0:07:07.5]} 17. Bxc6 {[%clk 0:07:33.4]} 17... Bxf4 {[%clk 0:06:51.8]} 18.
Nb5 {[%clk 0:06:59.2]} 18... Qe5 {[%clk 0:06:25.1]} 19. Re1 {[%clk 0:06:58.6]}
19... Qg5 {[%clk 0:05:22.8]} 20. h4 {[%clk 0:06:55.3]} 20... Qh6 {[%clk
0:05:14.4]} 21. Bxb7 {[%clk 0:06:46.7]} 21... Bxc1 {[%clk 0:05:12.6]} 22. Bxa8
{[%clk 0:06:47.3]} 22... Nxa8 {[%clk 0:04:53.6]} 23. Rxe7 {[%clk 0:06:44.8]}
23... Bxb2 {[%clk 0:04:38]} 24. Nd6 {[%clk 0:06:39.8]} 24... Qc1+ {[%clk
0:03:51.2]} 25. Kh2 {[%clk 0:06:39.1]} 25... Ba3 {[%clk 0:03:38.6]} 26. Qf6
{[%clk 0:06:07.9]} 26... Qc6 {[%clk 0:02:55.4]} 27. Ne4 {[%clk 0:05:29.2]} 27...
Qxf6 {[%clk 0:02:41]} 28. Nxf6+ {[%clk 0:05:29.7]} 28... Kg7 {[%clk 0:02:42.9]}
29. Ne8+ {[%clk 0:05:26]} 29... Kh8 {[%clk 0:02:35.1]} 30. Re4 {[%clk
0:05:11.2]} 30... f5 {[%clk 0:02:29.7]} 31. Re6 {[%clk 0:05:09.1]} 31... Kg8
{[%clk 0:02:24.2]} 32. Nf6+ {[%clk 0:05:03]} 32... Kg7 {[%clk 0:02:12]} 33. Nd7
{[%clk 0:04:57.8]} 33... Rd8 {[%clk 0:02:08.3]} 34. Ne5 {[%clk 0:04:49.2]} 34...
Bd6 {[%clk 0:01:57.7]} 35. f4 {[%clk 0:04:50.5]} 35... Nc7 {[%clk 0:01:56.2]}
0-1

[Event "GrandPrix_30.05"]
[Site "Chess.com"]
[Date "2020.05.30"]
[Round "2"]
[White "LorisinoC"]
[Black "Glek_Igor"]
[Result "1/2-1/2"]
[WhiteElo "2139"]
[BlackElo "2455"]
[TimeControl "600+2"]
[EndTime "8:47:47 PDT"]
[Termination "Game drawn by agreement"]

1. e4 {[%clk 0:10:01.9]} 1... e6 {[%clk 0:09:56.1]} 2. d4 {[%clk 0:10:02]} 2...
d5 {[%clk 0:09:57.5]} 3. exd5 {[%clk 0:10:01.9]} 3... exd5 {[%clk 0:09:57.9]} 4.
Nf3 {[%clk 0:10:03.3]} 4... Bd6 {[%clk 0:09:52.3]} 5. c4 {[%clk 0:10:01.9]} 5...
c6 {[%clk 0:09:46.1]} 6. Nc3 {[%clk 0:10:01.5]} 6... Ne7 {[%clk 0:09:44.1]} 7.
Be2 {[%clk 0:09:54.1]} 7... O-O {[%clk 0:09:44]} 8. O-O {[%clk 0:09:53.3]} 8...
h6 {[%clk 0:09:30.1]} 9. Re1 {[%clk 0:09:46.2]} 9... dxc4 {[%clk 0:08:59.5]} 10.
Bxc4 {[%clk 0:09:44.7]} 10... Nd7 {[%clk 0:08:56.8]} 11. Bd2 {[%clk 0:09:29.6]}
11... Nb6 {[%clk 0:08:56.1]} 12. Bb3 {[%clk 0:09:08.6]} 12... Bg4 {[%clk
0:08:35]} 13. h3 {[%clk 0:09:05]} 13... Bh5 {[%clk 0:08:35.4]} 14. g4 {[%clk
0:09:01.1]} 14... Bg6 {[%clk 0:08:36]} 15. Ne5 {[%clk 0:08:58.4]} 15... Bc7
{[%clk 0:07:54.3]} 16. f4 {[%clk 0:08:28.8]} 16... Qxd4+ {[%clk 0:07:47.4]} 17.
Be3 {[%clk 0:08:24.9]} 17... Qxd1 {[%clk 0:07:46.2]} 18. Raxd1 {[%clk
0:08:24.4]} 18... Bxe5 {[%clk 0:07:44.7]} 19. Bxb6 {[%clk 0:08:20.1]} 19... Bxc3
{[%clk 0:07:37.1]} 20. bxc3 {[%clk 0:08:19.9]} 20... Nd5 {[%clk 0:07:24.9]} 21.
Bc5 {[%clk 0:08:19.5]} 21... Nxf4 {[%clk 0:04:44.7]} 22. Bxf8 {[%clk 0:07:55.6]}
22... Kxf8 {[%clk 0:04:44.6]} 23. Re3 {[%clk 0:07:19.2]} 23... Re8 {[%clk
0:04:24.3]} 24. Rxe8+ {[%clk 0:07:04.4]} 24... Kxe8 {[%clk 0:04:24.4]} 25. Kh2
{[%clk 0:07:05.3]} 25... Ke7 {[%clk 0:03:51.7]} 26. Rd2 {[%clk 0:06:29.1]} 26...
b5 {[%clk 0:03:22.2]} 27. Kg3 {[%clk 0:06:25.3]} 27... Ne6 {[%clk 0:03:13.1]}
28. Bxe6 {[%clk 0:06:17.7]} 28... fxe6 {[%clk 0:03:07.7]} 29. Kf4 {[%clk
0:06:07.8]} 29... a5 {[%clk 0:02:04.5]} 30. Ke5 {[%clk 0:06:00]} 30... Be8
{[%clk 0:02:00.2]} 31. h4 {[%clk 0:05:50.9]} 31... a4 {[%clk 0:01:23.5]} 32. g5
{[%clk 0:05:41.2]} 32... hxg5 {[%clk 0:01:22.9]} 33. hxg5 {[%clk 0:05:41.8]}
33... c5 {[%clk 0:01:21.1]} 34. Rd6 {[%clk 0:05:34.5]} 34... Bd7 {[%clk
0:01:04.4]} 35. Rb6 {[%clk 0:05:22.3]} 1/2-1/2

[Event "GrandPrix_30.05"]
[Site "Chess.com"]
[Date "2020.05.30"]
[Round "2"]
[White "weplaychess09"]
[Black "anesar92"]
[Result "0-1"]
[WhiteElo "2058"]
[BlackElo "2419"]
[TimeControl "600+2"]
[EndTime "8:47:52 PDT"]
[Termination "anesar92 won by resignation"]

1. d4 {[%clk 0:10:01.9]} 1... Nf6 {[%clk 0:09:59.7]} 2. c4 {[%clk 0:10:03]} 2...
e6 {[%clk 0:10:00.4]} 3. Nf3 {[%clk 0:10:03.3]} 3... Bb4+ {[%clk 0:09:56.8]} 4.
Nbd2 {[%clk 0:10:03.5]} 4... O-O {[%clk 0:09:56.8]} 5. a3 {[%clk 0:10:03.6]}
5... Be7 {[%clk 0:09:58.2]} 6. e4 {[%clk 0:10:04.3]} 6... d6 {[%clk 0:09:59.3]}
7. Bd3 {[%clk 0:10:01.2]} 7... e5 {[%clk 0:09:41]} 8. d5 {[%clk 0:10:00.6]} 8...
a5 {[%clk 0:09:36.6]} 9. O-O {[%clk 0:09:58.8]} 9... Nfd7 {[%clk 0:09:36.6]} 10.
Bc2 {[%clk 0:09:55.4]} 10... Na6 {[%clk 0:09:30.4]} 11. Nb1 {[%clk 0:09:52.6]}
11... Nb6 {[%clk 0:09:13.6]} 12. Qe2 {[%clk 0:09:49.6]} 12... Nc5 {[%clk
0:09:11.9]} 13. b3 {[%clk 0:09:43.1]} 13... a4 {[%clk 0:08:45.1]} 14. b4 {[%clk
0:09:42.5]} 14... Nb3 {[%clk 0:08:46.1]} 15. Bxb3 {[%clk 0:09:33.8]} 15... axb3
{[%clk 0:08:48]} 16. Nbd2 {[%clk 0:09:35]} 16... f5 {[%clk 0:08:45.6]} 17. Nxb3
{[%clk 0:09:28.6]} 17... fxe4 {[%clk 0:08:43.7]} 18. Qxe4 {[%clk 0:09:29]} 18...
Bf5 {[%clk 0:08:39.2]} 19. Qe2 {[%clk 0:09:30]} 19... Bg4 {[%clk 0:08:31]} 20.
Nbd2 {[%clk 0:09:22.6]} 20... Qe8 {[%clk 0:08:20.5]} 21. Rb1 {[%clk 0:08:43.5]}
21... Qg6 {[%clk 0:08:17]} 22. Rb3 {[%clk 0:08:41.8]} 22... Rf4 {[%clk
0:08:02.4]} 23. Re1 {[%clk 0:07:43.4]} 23... Raf8 {[%clk 0:07:54.3]} 24. Kh1
{[%clk 0:07:34.7]} 24... Qc2 {[%clk 0:06:52.5]} 25. Rb2 {[%clk 0:07:10.1]} 25...
Qf5 {[%clk 0:06:40.4]} 26. Rb3 {[%clk 0:06:54]} 26... Qh5 {[%clk 0:04:57.7]} 27.
Re3 {[%clk 0:06:28.5]} 27... Bg5 {[%clk 0:04:41]} 28. Re4 {[%clk 0:05:34.7]}
28... R4f7 {[%clk 0:04:17.9]} 29. Kg1 {[%clk 0:04:57]} 29... Bxd2 {[%clk
0:04:02.9]} 30. Bxd2 {[%clk 0:04:56.5]} 30... Rxf3 {[%clk 0:03:59.6]} 31. gxf3
{[%clk 0:04:25.9]} 31... Bxf3 {[%clk 0:04:01.5]} 32. Qe3 {[%clk 0:04:21]} 32...
Qg6+ {[%clk 0:04:02.1]} 33. Qg5 {[%clk 0:04:21.5]} 33... Bxe4 {[%clk 0:04:02.5]}
34. Qxg6 {[%clk 0:04:17.8]} 34... Bxg6 {[%clk 0:04:04.4]} 35. Rc1 {[%clk
0:04:18]} 35... Bd3 {[%clk 0:04:00.9]} 36. c5 {[%clk 0:04:18.7]} 36... Nxd5
{[%clk 0:04:01.1]} 37. cxd6 {[%clk 0:04:19.5]} 37... cxd6 {[%clk 0:04:03]} 38.
Rd1 {[%clk 0:04:18.3]} 38... Be2 {[%clk 0:03:58.9]} 39. Re1 {[%clk 0:04:18.8]}
39... Bf3 {[%clk 0:03:57.9]} 40. b5 {[%clk 0:04:16.6]} 40... Ra8 {[%clk
0:03:49.9]} 41. Ra1 {[%clk 0:04:15.9]} 41... Ra4 {[%clk 0:03:50.4]} 42. Kf1
{[%clk 0:04:12.9]} 42... Kf7 {[%clk 0:03:47.3]} 43. Ra2 {[%clk 0:04:01.6]} 43...
Ke6 {[%clk 0:03:45.3]} 44. Be1 {[%clk 0:03:59.6]} 44... Nf4 {[%clk 0:03:38.1]}
45. Bd2 {[%clk 0:03:52.2]} 45... Nd3 {[%clk 0:03:38.1]} 46. Be3 {[%clk
0:03:50.4]} 46... Rh4 {[%clk 0:03:30.4]} 47. Kg1 {[%clk 0:03:48.7]} 47... Rg4+
{[%clk 0:03:31.3]} 48. Kf1 {[%clk 0:03:49.7]} 48... Rg2 {[%clk 0:03:32.1]} 0-1

[Event "GrandPrix_30.05"]
[Site "Chess.com"]
[Date "2020.05.30"]
[Round "2"]
[White "Igor_Lysyj"]
[Black "RovenVogel"]
[Result "1/2-1/2"]
[WhiteElo "2619"]
[BlackElo "2356"]
[TimeControl "600+2"]
[EndTime "8:48:29 PDT"]
[Termination "Game drawn by repetition"]

1. d4 {[%clk 0:10:00.5]} 1... Nf6 {[%clk 0:09:52.8]} 2. c4 {[%clk 0:10:01]} 2...
e6 {[%clk 0:09:53]} 3. Nf3 {[%clk 0:10:01.4]} 3... d5 {[%clk 0:09:52.8]} 4. g3
{[%clk 0:10:02.2]} 4... Be7 {[%clk 0:09:51.7]} 5. Bg2 {[%clk 0:10:02.6]} 5...
O-O {[%clk 0:09:52.1]} 6. O-O {[%clk 0:10:02.4]} 6... dxc4 {[%clk 0:09:35.7]} 7.
Ne5 {[%clk 0:10:02.4]} 7... Nc6 {[%clk 0:09:34.7]} 8. Bxc6 {[%clk 0:10:02.4]}
8... bxc6 {[%clk 0:09:35.2]} 9. Nxc6 {[%clk 0:10:03.3]} 9... Qe8 {[%clk
0:09:36.1]} 10. Nxe7+ {[%clk 0:10:04.2]} 10... Qxe7 {[%clk 0:09:38]} 11. Nc3
{[%clk 0:10:04.7]} 11... c5 {[%clk 0:08:03.5]} 12. dxc5 {[%clk 0:10:04.2]} 12...
Qxc5 {[%clk 0:08:00.5]} 13. Be3 {[%clk 0:10:03.9]} 13... Qc6 {[%clk 0:07:06]}
14. Qa4 {[%clk 0:10:03.5]} 14... Bd7 {[%clk 0:06:50.3]} 15. Qxc6 {[%clk
0:09:58.9]} 15... Bxc6 {[%clk 0:06:52.2]} 16. Rfd1 {[%clk 0:09:59.3]} 16... Nd5
{[%clk 0:06:38.7]} 17. Rd4 {[%clk 0:09:59.4]} 17... Nxc3 {[%clk 0:06:13.8]} 18.
bxc3 {[%clk 0:09:59.6]} 18... a6 {[%clk 0:05:32.4]} 19. Rd6 {[%clk 0:09:23.4]}
19... Bd5 {[%clk 0:04:59.8]} 20. Rb1 {[%clk 0:08:50.2]} 20... Rfd8 {[%clk
0:04:46.3]} 21. Rxd8+ {[%clk 0:07:40.5]} 21... Rxd8 {[%clk 0:04:45.4]} 22. Rb6
{[%clk 0:07:40.5]} 22... f6 {[%clk 0:04:06.2]} 23. f3 {[%clk 0:07:32.6]} 23...
a5 {[%clk 0:03:33.7]} 24. Kf2 {[%clk 0:07:08.9]} 24... e5 {[%clk 0:02:34]} 25.
Ra6 {[%clk 0:06:30.7]} 25... Ra8 {[%clk 0:02:13.7]} 26. Rd6 {[%clk 0:06:31]}
26... Bf7 {[%clk 0:02:11.6]} 27. Bc5 {[%clk 0:06:14.9]} 27... h5 {[%clk
0:02:03.3]} 28. h4 {[%clk 0:06:07.7]} 28... Rb8 {[%clk 0:01:56.7]} 29. Ra6
{[%clk 0:05:56.4]} 29... Rb5 {[%clk 0:01:47.1]} 30. Bb6 {[%clk 0:05:31.9]} 30...
Rb2 {[%clk 0:01:45.6]} 31. a3 {[%clk 0:04:09.3]} 31... Bg6 {[%clk 0:01:45.2]}
32. Ke1 {[%clk 0:03:50.8]} 32... Rb1+ {[%clk 0:01:45.2]} 33. Kf2 {[%clk
0:03:48.6]} 33... Rb2 {[%clk 0:01:46.3]} 34. Ke1 {[%clk 0:03:49.6]} 34... Rb1+
{[%clk 0:01:47]} 35. Kf2 {[%clk 0:03:50.7]} 35... Rb2 {[%clk 0:01:48.1]} 1/2-1/2

[Event "GrandPrix_30.05"]
[Site "Chess.com"]
[Date "2020.05.30"]
[Round "2"]
[White "Azatic"]
[Black "Mizner"]
[Result "1-0"]
[WhiteElo "2361"]
[BlackElo "2113"]
[TimeControl "600+2"]
[EndTime "8:48:30 PDT"]
[Termination "Azatic won by resignation"]

1. e4 {[%clk 0:10:01.9]} 1... e6 {[%clk 0:10:00.8]} 2. d4 {[%clk 0:10:02.2]}
2... d5 {[%clk 0:10:02.7]} 3. e5 {[%clk 0:10:03.7]} 3... c5 {[%clk 0:10:03.4]}
4. c3 {[%clk 0:10:05.2]} 4... Nc6 {[%clk 0:10:03.6]} 5. Nf3 {[%clk 0:10:06]}
5... Qb6 {[%clk 0:10:04.4]} 6. a3 {[%clk 0:10:07]} 6... f6 {[%clk 0:10:03]} 7.
Bd3 {[%clk 0:09:59.2]} 7... fxe5 {[%clk 0:10:01.3]} 8. dxe5 {[%clk 0:10:01.1]}
8... c4 {[%clk 0:09:55.2]} 9. Bc2 {[%clk 0:09:58.8]} 9... Nh6 {[%clk 0:09:50.9]}
10. Nbd2 {[%clk 0:08:59.4]} 10... Ng4 {[%clk 0:09:30.5]} 11. O-O {[%clk
0:08:25.3]} 11... Ngxe5 {[%clk 0:09:29.8]} 12. Nxe5 {[%clk 0:07:01.2]} 12...
Nxe5 {[%clk 0:09:31.7]} 13. Re1 {[%clk 0:07:00.6]} 13... Nd7 {[%clk 0:07:02.1]}
14. Qh5+ {[%clk 0:06:41.5]} 14... Kd8 {[%clk 0:07:02.8]} 15. Nf3 {[%clk
0:06:05.1]} 15... Nf6 {[%clk 0:07:02.1]} 16. Bg5 {[%clk 0:05:57.5]} 16... Be7
{[%clk 0:07:00.4]} 17. Qf7 {[%clk 0:05:03.2]} 17... Bd7 {[%clk 0:06:03.5]} 18.
Nd4 {[%clk 0:04:12.5]} 18... Rf8 {[%clk 0:04:09.2]} 19. Qxg7 {[%clk 0:04:09.4]}
19... Rg8 {[%clk 0:03:24.3]} 20. Qh6 {[%clk 0:04:05.9]} 20... e5 {[%clk
0:03:21.9]} 21. Rxe5 {[%clk 0:03:22.2]} 1-0

[Event "GrandPrix_30.05"]
[Site "Chess.com"]
[Date "2020.05.30"]
[Round "2"]
[White "Keks2017"]
[Black "Hrant_ChessMood"]
[Result "0-1"]
[WhiteElo "2378"]
[BlackElo "2868"]
[TimeControl "600+2"]
[EndTime "8:48:35 PDT"]
[Termination "Hrant_ChessMood won by resignation"]

1. g3 {[%clk 0:10:00.5]} 1... d5 {[%clk 0:09:58.5]} 2. Bg2 {[%clk 0:10:01.2]}
2... Nf6 {[%clk 0:09:55.5]} 3. d3 {[%clk 0:10:01.2]} 3... e5 {[%clk 0:09:50.7]}
4. Nf3 {[%clk 0:10:01.4]} 4... Bd6 {[%clk 0:09:48.1]} 5. O-O {[%clk 0:10:01.7]}
5... O-O {[%clk 0:09:48.5]} 6. c4 {[%clk 0:10:00.7]} 6... c6 {[%clk 0:09:39.7]}
7. cxd5 {[%clk 0:10:00.3]} 7... cxd5 {[%clk 0:09:40.6]} 8. Nc3 {[%clk
0:10:00.7]} 8... Nc6 {[%clk 0:09:23.5]} 9. Bg5 {[%clk 0:09:56.5]} 9... Be6
{[%clk 0:09:24.2]} 10. Nd2 {[%clk 0:09:55.8]} 10... Be7 {[%clk 0:09:20.2]} 11.
Bxf6 {[%clk 0:09:53.6]} 11... Bxf6 {[%clk 0:09:18.9]} 12. e4 {[%clk 0:09:54.3]}
12... dxe4 {[%clk 0:09:11.4]} 13. dxe4 {[%clk 0:09:54.3]} 13... Nd4 {[%clk
0:08:29.8]} 14. Nd5 {[%clk 0:09:47]} 14... Rc8 {[%clk 0:08:30]} 15. Nb3 {[%clk
0:09:38.1]} 15... Bxd5 {[%clk 0:08:07.9]} 16. exd5 {[%clk 0:09:28.2]} 16... Nb5
{[%clk 0:08:03.6]} 17. Rc1 {[%clk 0:09:10.7]} 17... Nd6 {[%clk 0:07:57.5]} 18.
Qd3 {[%clk 0:08:32.9]} 18... Qb6 {[%clk 0:07:34.3]} 19. Bh3 {[%clk 0:08:08.8]}
19... e4 {[%clk 0:07:30.6]} 20. Qe2 {[%clk 0:08:03.5]} 20... Rcd8 {[%clk
0:07:01.7]} 21. Rc2 {[%clk 0:07:07.2]} 21... Rfe8 {[%clk 0:06:58.2]} 22. Rd1
{[%clk 0:06:24.9]} 22... e3 {[%clk 0:06:50.7]} 23. f3 {[%clk 0:06:23.8]} 23...
g6 {[%clk 0:06:35]} 24. Bf1 {[%clk 0:05:47.8]} 24... Nf5 {[%clk 0:06:17.1]} 25.
Kg2 {[%clk 0:05:46.4]} 25... a5 {[%clk 0:05:45.9]} 26. Rc4 {[%clk 0:05:23]}
26... Rc8 {[%clk 0:04:40.3]} 27. Rdc1 {[%clk 0:05:14.3]} 27... Rxc4 {[%clk
0:04:39.9]} 28. Rxc4 {[%clk 0:05:14.5]} 28... Nd6 {[%clk 0:04:20.3]} 29. Rc2
{[%clk 0:05:07.5]} 29... Kg7 {[%clk 0:04:09.1]} 30. Nc5 {[%clk 0:04:41.8]} 30...
Re7 {[%clk 0:03:38.6]} 31. Qd3 {[%clk 0:03:53.8]} 31... Nf5 {[%clk 0:03:12.6]}
32. Na4 {[%clk 0:03:26.9]} 32... Qb4 {[%clk 0:02:59.1]} 33. Rc4 {[%clk
0:02:56.3]} 33... Qd2+ {[%clk 0:02:56]} 0-1

[Event "GrandPrix_30.05"]
[Site "Chess.com"]
[Date "2020.05.30"]
[Round "2"]
[White "NikolaGry"]
[Black "Cocolino12"]
[Result "1-0"]
[WhiteElo "2109"]
[BlackElo "2217"]
[TimeControl "600+2"]
[EndTime "8:48:35 PDT"]
[Termination "NikolaGry won by resignation"]

1. b3 {[%clk 0:10:01.9]} 1... e5 {[%clk 0:09:59.8]} 2. Bb2 {[%clk 0:10:02.4]}
2... Nc6 {[%clk 0:10:00]} 3. c4 {[%clk 0:10:03.2]} 3... Nf6 {[%clk 0:09:58.5]}
4. e3 {[%clk 0:10:03.8]} 4... d5 {[%clk 0:09:56.9]} 5. cxd5 {[%clk 0:10:03.4]}
5... Nxd5 {[%clk 0:09:56.3]} 6. d3 {[%clk 0:10:02.1]} 6... Be7 {[%clk
0:09:51.2]} 7. Nf3 {[%clk 0:10:00.6]} 7... f6 {[%clk 0:09:25.9]} 8. a3 {[%clk
0:09:59]} 8... O-O {[%clk 0:09:22.4]} 9. Be2 {[%clk 0:09:57.9]} 9... Be6 {[%clk
0:09:19.4]} 10. O-O {[%clk 0:09:57.6]} 10... a5 {[%clk 0:08:55.1]} 11. Nbd2
{[%clk 0:09:56.3]} 11... Qe8 {[%clk 0:08:23.7]} 12. Qc2 {[%clk 0:09:46.5]} 12...
g5 {[%clk 0:08:02.4]} 13. Ne4 {[%clk 0:08:42.6]} 13... g4 {[%clk 0:07:56.3]} 14.
Nfd2 {[%clk 0:08:41]} 14... f5 {[%clk 0:07:39]} 15. Nc5 {[%clk 0:08:39.6]} 15...
Bc8 {[%clk 0:07:39.6]} 16. Rfe1 {[%clk 0:07:53.9]} 16... f4 {[%clk 0:07:14.7]}
17. exf4 {[%clk 0:07:32.4]} 17... Rxf4 {[%clk 0:07:15.1]} 18. Nde4 {[%clk
0:07:13.7]} 18... Nd4 {[%clk 0:06:58.5]} 19. Bxd4 {[%clk 0:06:55.6]} 19... exd4
{[%clk 0:07:00.4]} 20. g3 {[%clk 0:05:59.2]} 20... Rf8 {[%clk 0:06:41.5]} 21.
Bf1 {[%clk 0:05:52.6]} 21... b6 {[%clk 0:06:20.6]} 22. Na4 {[%clk 0:05:36.9]}
22... Bb7 {[%clk 0:06:16.9]} 23. Bg2 {[%clk 0:05:33.4]} 23... Qd7 {[%clk
0:06:13.2]} 24. Qb2 {[%clk 0:05:07.2]} 24... c5 {[%clk 0:05:49.1]} 25. Qd2
{[%clk 0:04:46.7]} 25... Qf5 {[%clk 0:05:06.7]} 26. Nb2 {[%clk 0:04:33.6]} 26...
Rae8 {[%clk 0:04:21.2]} 27. Nc4 {[%clk 0:04:28.9]} 27... Nc3 {[%clk 0:03:54.3]}
28. Ned6 {[%clk 0:04:02.3]} 28... Bxd6 {[%clk 0:03:39.1]} 29. Nxd6 {[%clk
0:04:00.5]} 29... Rxe1+ {[%clk 0:03:40.5]} 30. Rxe1 {[%clk 0:03:58.5]} 30... Qg6
{[%clk 0:03:27.8]} 31. Nxb7 {[%clk 0:03:55.2]} 31... a4 {[%clk 0:03:22]} 32.
bxa4 {[%clk 0:03:50.4]} 32... Nxa4 {[%clk 0:03:23.9]} 33. Re5 {[%clk 0:03:44.8]}
33... h6 {[%clk 0:03:20.5]} 34. Bd5+ {[%clk 0:03:31.3]} 34... Kh8 {[%clk
0:03:18.8]} 35. Re6 {[%clk 0:03:28]} 35... Rf6 {[%clk 0:03:14.5]} 36. Rxf6
{[%clk 0:03:19.4]} 36... Qxf6 {[%clk 0:03:16.4]} 37. Qe2 {[%clk 0:03:16.1]}
37... Qg6 {[%clk 0:02:47.7]} 38. Qe5+ {[%clk 0:03:06.6]} 38... Qg7 {[%clk
0:02:48.4]} 39. Qe8+ {[%clk 0:03:03.8]} 1-0